fUSD/lending_fUSD_20250708
["ID","MTS","AMOUNT","RATE_DAILY","PERIOD"]
[370401151,1752000647932,-460.0,0.00024657,2]
[370401152,1752000647942,-383.057944,0.00024657,7]
[370401153,1752000647951,-383.057944,0.00024657,7]
[370401154,1752000647960,-383.057944,0.00024657,7]
[370401155,1752000647970,-383.057944,0.00024657,7]
[370401156,1752000647979,-383.057944,0.00024657,7]
[370401157,1752000648182,-383.057944,0.00024657,7]
[370401158,1752000648191,-460.0,0.00024657,2]
[370401159,1752000648201,-383.057944,0.00024657,7]
[370401160,1752000648210,-383.057944,0.00024657,7]
[370401161,1752000648219,-1117.77,0.00024657,2]
[370401162,1752000648229,-383.057944,0.00024657,7]
[370401163,1752000648239,-383.05794,0.00024657,7]
[370401164,1752000648248,-460.0,0.00024657,2]
[370401165,1752000648257,-460.0,0.00024657,2]
[370401166,1752000648266,-460.0,0.00024657,2]
[370401167,1752000648276,-558.68,0.00024657,2]
[370401168,1752000648287,-460.0,0.00024657,2]
[370401169,1752000648297,-460.0,0.00024657,2]
[370401170,1752000648306,-460.0,0.00024657,2]
[370401171,1752000648316,-460.0,0.00024657,2]
[370401172,1752000648326,-619.02,0.00024657,2]
[370401173,1752000648337,-460.0,0.00024657,2]
[370401174,1752000648347,-1202.76,0.00024657,2]
[370401175,1752000648357,-586.62,0.00024657,2]
[370401176,1752000648368,-460.0,0.00024657,2]
[370401177,1752000648379,-460.0,0.00024657,2]
[370401178,1752000648390,-460.0,0.00024657,2]
[370401179,1752000648399,-151.0,0.00024657,7]
[370401180,1752000648408,-151.0,0.00024657,7]
[370401181,1752000648419,-1253.26,0.00024657,2]
[370401182,1752000648428,-556.86,0.00024657,2]
[370401183,1752000648440,-460.0,0.00024657,2]
[370401184,1752000648450,-460.0,0.00024657,2]
[370401185,1752000648460,-460.0,0.00024657,2]
[370401186,1752000648469,-460.0,0.00024657,2]
[370401187,1752000648478,-184.19172264,0.00024657,2]
[370401188,1752000648488,-460.0,0.00024657,2]
[370401189,1752000648497,-460.0,0.00024657,2]
[370401190,1752000648506,-1011.19,0.00024657,2]
[370401191,1752000648516,-954.26,0.00024657,2]
[370401192,1752000648525,-460.0,0.00024657,2]
[370401193,1752000648535,-460.0,0.00024657,2]
[370401194,1752000648544,-916.17,0.00024657,2]
[370401195,1752000648553,-460.0,0.00024657,2]
[370401196,1752000648563,-151.0,0.00024657,7]
[370401197,1752000648572,-151.0,0.00024657,7]
[370401198,1752000648582,-460.0,0.00024657,2]
[370401199,1752000648591,-460.0,0.00024657,2]
[370401200,1752000648601,-460.0,0.00024657,2]
[370401201,1752000648612,-510.56,0.00024657,2]
[370401202,1752000648622,-460.0,0.00024657,2]
[370401203,1752000648632,-460.0,0.00024657,2]
[370401204,1752000648641,-607.68,0.00024657,2]
[370401205,1752000648652,-460.0,0.00024657,2]
[370401206,1752000648661,-460.0,0.00024657,2]
[370401207,1752000648670,-733.58,0.00024657,2]
[370401208,1752000648679,-965.27,0.00024657,2]
[370401209,1752000648691,-460.0,0.00024657,2]
[370401210,1752000648700,-1349.41,0.00024657,2]
[370401211,1752000648710,-244.47,0.00024657,2]
[370401212,1752000648719,-947.31,0.00024657,2]
[370401213,1752000648730,-511.02,0.00024657,2]
[370401214,1752000648739,-460.0,0.00024657,2]
[370401215,1752000648749,-739.76,0.00024657,2]
[370401216,1752000648757,-500.0,0.00024657,2]
[370401217,1752000648767,-767.81,0.00024657,2]
[370401218,1752000648776,-824.54,0.00024657,2]
[370401219,1752000648786,-460.0,0.00024657,2]
[370401220,1752000648796,-460.0,0.00024657,2]
[370401221,1752000648811,-460.0,0.00024657,2]
[370401222,1752000648821,-691.48,0.00024657,2]
[370401223,1752000648831,-563.08,0.00024657,2]
[370401224,1752000648841,-460.0,0.00024657,2]
[370401225,1752000648850,-460.0,0.00024657,2]
[370401226,1752000648860,-694.44,0.00024657,2]
[370401227,1752000648870,-460.0,0.00024657,2]
[370401228,1752000648880,-1231.77,0.00024657,2]
[370401229,1752000648889,-460.0,0.00024657,2]
[370401230,1752000648899,-460.0,0.00024657,2]
[370401231,1752000648909,-460.0,0.00024657,2]
[370401232,1752000648918,-460.0,0.00024657,2]
[370401233,1752000648928,-460.0,0.00024657,2]
[370401234,1752000648939,-460.0,0.00024657,2]
[370401235,1752000648949,-537.66,0.00024657,2]
[370401236,1752000648958,-460.0,0.00024657,2]
[370401237,1752000648968,-460.0,0.00024657,2]
[370401238,1752000648978,-472.62,0.00024657,2]
[370401239,1752000648988,-460.0,0.00024657,2]
[370401240,1752000648998,-689.09,0.00024657,2]
[370401241,1752000649007,-500.0,0.00024657,2]
[370401242,1752000649017,-460.0,0.00024657,2]
[370401243,1752000649027,-577.73,0.00024657,2]
[370401244,1752000649036,-460.0,0.00024657,2]
[370401245,1752000649045,-690.58,0.00024657,2]
[370401246,1752000649055,-602.43,0.00024657,2]
[370401247,1752000649065,-460.0,0.00024657,2]
[370401248,1752000649075,-460.0,0.00024657,2]
[370401249,1752000649085,-460.0,0.00024657,2]
[370401250,1752000649094,-571.26,0.00024657,2]
[370401251,1752000649104,-464.97,0.00024657,2]
[370401252,1752000649114,-460.0,0.00024657,2]
[370401253,1752000649123,-997.83,0.00024657,2]
[370401254,1752000649134,-460.0,0.00024657,2]
[370401255,1752000649143,-500.0,0.00024657,2]
[370401256,1752000649153,-460.0,0.00024657,2]
[370401257,1752000649163,-460.0,0.00024657,2]
[370401258,1752000649173,-460.0,0.00024657,2]
[370401259,1752000649182,-460.0,0.00024657,2]
[370401260,1752000649192,-937.08,0.00024657,2]
[370401261,1752000649202,-900.4,0.00024657,2]
[370401262,1752000649211,-460.0,0.00024657,2]
[370401263,1752000649221,-162.59601889,0.00024657,2]
[370401264,1752000649230,-460.0,0.00024657,2]
[370401265,1752000649239,-394.72933703,0.00024657,2]
[370401266,1752000649249,-460.0,0.00024657,2]
[370401267,1752000649259,-460.0,0.00024657,2]
[370401268,1752000649268,-876.29,0.00024657,2]
[370401269,1752000649278,-460.0,0.00024657,2]
[370401270,1752000649288,-392.27243054,0.00024657,2]
[370401271,1752000649298,-661.75,0.00024657,2]
[370401272,1752000649307,-552.7,0.00024657,2]
[370401273,1752000649317,-460.0,0.00024657,2]
[370401274,1752000649326,-634.69,0.00024657,2]
[370401275,1752000649336,-518.32,0.00024657,2]
[370401276,1752000649345,-460.0,0.00024657,2]
[370401277,1752000649365,-500.0,0.00024657,2]
[370401278,1752000649375,-500.0,0.00024657,2]
[370401279,1752000649386,-460.0,0.00024657,2]
[370401280,1752000649396,-500.0,0.00024657,2]
[370401281,1752000649406,-500.0,0.00024657,2]
[370401282,1752000649415,-500.0,0.00024657,2]
[370401283,1752000649424,-500.0,0.00024657,2]
[370401284,1752000649434,-500.0,0.00024657,2]
[370401285,1752000649443,-460.0,0.00024657,2]
[370401286,1752000649453,-860.03,0.00024657,2]
[370401287,1752000649463,-477.79,0.00024657,2]
[370401288,1752000649472,-662.44,0.00024657,2]
[370401289,1752000649488,-460.0,0.00024657,2]
[370401290,1752000649507,-709.37,0.00024657,2]
[370401291,1752000649524,-1140.5,0.00024657,2]
[370401292,1752000649543,-460.0,0.00024657,2]
[370401293,1752000649561,-460.0,0.00024657,2]
[370401294,1752000649577,-1053.390274,0.00024657,7]
[370401295,1752000649594,-1053.390272,0.00024657,7]
[370401296,1752000649614,-151.0,0.00024657,7]
[370401297,1752000649635,-151.0,0.00024657,7]
[370401298,1752000649653,-460.0,0.00024657,2]
[370401299,1752000649671,-460.0,0.00024657,2]
[370401300,1752000649690,-460.0,0.00024657,2]
[370401301,1752000649703,-631.12,0.00024657,2]
[370401302,1752000649721,-460.0,0.00024657,2]
[370401303,1752000649735,-593.27,0.00024657,2]
[370401304,1752000649751,-670.05,0.00024657,2]
[370401305,1752000649765,-460.0,0.00024657,2]
[370401306,1752000649779,-460.0,0.00024657,2]
[370401307,1752000649794,-460.0,0.00024657,2]
[370401308,1752000649809,-737.78,0.00024657,2]
[370401309,1752000649825,-460.0,0.00024657,2]
[370401310,1752000649840,-669.13,0.00024657,2]
[370401311,1752000649854,-481.52,0.00024657,2]
[370401312,1752000649870,-460.0,0.00024657,2]
[370401313,1752000649884,-1228.54,0.00024657,2]
[370401314,1752000649899,-464.22,0.00024657,2]
[370401315,1752000649914,-551.87,0.00024657,2]
[370401316,1752000649928,-460.0,0.00024657,2]
[370401317,1752000649944,-460.0,0.00024657,2]
[370401318,1752000649966,-460.0,0.00024657,2]
[370401319,1752000649979,-460.0,0.00024657,2]
[370401320,1752000649995,-538.09,0.00024657,2]
[370401321,1752000650009,-460.0,0.00024657,2]
[370401322,1752000650024,-390.109071,0.00024657,7]
[370401323,1752000650042,-564.25633834,0.00024657,2]
[370401324,1752000650057,-390.109071,0.00024657,7]
[370401325,1752000650073,-460.0,0.00024657,2]
[370401326,1752000650088,-390.109071,0.00024657,7]
[370401327,1752000650103,-460.0,0.00024657,2]
[370401328,1752000650118,-460.0,0.00024657,2]
[370401329,1752000650132,-460.0,0.00024657,2]
[370401330,1752000650147,-390.109071,0.00024657,7]
[370401331,1752000650166,-390.109071,0.00024657,7]
[370401332,1752000650186,-460.0,0.00024657,2]
[370401333,1752000650201,-460.0,0.00024657,2]
[370401334,1752000650217,-390.109071,0.00024657,7]
[370401335,1752000650232,-556.19,0.00024657,2]
[370401336,1752000650248,-460.0,0.00024657,2]
[370401337,1752000650264,-514.5,0.00024657,2]
[370401338,1752000650279,-533.59,0.00024657,2]
[370401339,1752000650294,-460.0,0.00024657,2]
[370401340,1752000650309,-460.0,0.00024657,2]
[370401341,1752000650324,-274.07589327,0.00024657,2]
[370401342,1752000650340,-460.0,0.00024657,2]
[370401343,1752000650358,-686.53,0.00024657,2]
[370401344,1752000650373,-460.0,0.00024657,2]
[370401345,1752000650393,-460.0,0.00024657,2]
[370401346,1752000650409,-520.15,0.00024657,2]
[370401347,1752000650425,-477.62,0.00024657,2]
[370401348,1752000650441,-460.0,0.00024657,2]
[370401349,1752000650457,-460.0,0.00024657,2]
[370401350,1752000650473,-768.33,0.00024657,2]
[370401351,1752000650488,-162.022116,0.00024657,7]
[370401352,1752000650504,-162.022116,0.00024657,7]
[370401353,1752000650519,-460.0,0.00024657,2]
[370401354,1752000650533,-576.11,0.00024657,2]
[370401355,1752000650549,-162.022121,0.00024657,7]
[370401356,1752000650564,-464.57,0.00024657,2]
[370401357,1752000650578,-460.0,0.00024657,2]
[370401358,1752000650594,-893.76,0.00024657,2]
[370401359,1752000650610,-460.0,0.00024657,2]
[370401360,1752000650626,-293.27481257,0.00024657,2]
[370401361,1752000650641,-570.52,0.00024657,2]
[370401362,1752000650656,-535.27,0.00024657,2]
[370401363,1752000650688,-460.0,0.00024657,2]
[370401364,1752000650710,-460.0,0.00024657,2]
[370401365,1752000650730,-1099.39,0.00024657,2]
[370401366,1752000650749,-460.0,0.00024657,2]
[370401367,1752000650767,-460.0,0.00024657,2]
[370401368,1752000650786,-460.0,0.00024657,2]
[370401369,1752000650803,-460.0,0.00024657,2]
[370401370,1752000650819,-1027.25,0.00024657,2]
[370401371,1752000650838,-460.0,0.00024657,2]
[370401372,1752000650864,-812.7,0.00024657,2]
[370401373,1752000650880,-460.0,0.00024657,2]
[370401374,1752000650896,-460.0,0.00024657,2]
[370401375,1752000650913,-628.68,0.00024657,2]
[370401376,1752000650929,-660.46,0.00024657,2]
[370401377,1752000650945,-460.0,0.00024657,2]
[370401378,1752000650961,-719.38,0.00024657,2]
[370401379,1752000650976,-687.52,0.00024657,2]
[370401380,1752000650992,-1107.1,0.00024657,2]
[370401381,1752000651007,-460.0,0.00024657,2]
[370401382,1752000651022,-548.05,0.00024657,2]
[370401383,1752000651038,-460.0,0.00024657,2]
[370401384,1752000651055,-460.0,0.00024657,2]
[370401385,1752000651071,-460.0,0.00024657,2]
[370401386,1752000651086,-460.0,0.00024657,2]
[370401387,1752000651100,-460.0,0.00024657,2]
[370401388,1752000651115,-604.87,0.00024657,2]
[370401389,1752000651131,-542.25,0.00024657,2]
[370401390,1752000651153,-460.0,0.00024657,2]
[370401391,1752000651169,-511.76,0.00024657,2]
[370401392,1752000651185,-460.0,0.00024657,2]
[370401393,1752000651201,-1699.45,0.00024657,2]
[370401394,1752000651217,-460.0,0.00024657,2]
[370401395,1752000651233,-460.0,0.00024657,2]
[370401396,1752000651248,-460.0,0.00024657,2]
[370401397,1752000651263,-460.0,0.00024657,2]
[370401398,1752000651278,-460.0,0.00024657,2]
[370401399,1752000651294,-1500.0,0.00024657,2]
[370401400,1752000651311,-860.89,0.00024657,2]
[370401401,1752000651327,-602.33,0.00024657,2]
[370401402,1752000651345,-460.0,0.00024657,2]
[370401403,1752000651360,-565.74,0.00024657,2]
[370401404,1752000651377,-460.0,0.00024657,2]
[370401405,1752000651393,-460.0,0.00024657,2]
[370401406,1752000651409,-460.0,0.00024657,2]
[370401407,1752000651424,-1161.14,0.00024657,2]
[370401408,1752000651439,-2333.31,0.00024657,2]
[370401409,1752000651453,-460.0,0.00024657,2]
[370401410,1752000651469,-731.26,0.00024657,2]
[370401411,1752000651484,-460.0,0.00024657,2]
[370401412,1752000651498,-460.0,0.00024657,2]
[370401413,1752000651512,-665.77,0.00024657,2]
[370401414,1752000651527,-460.0,0.00024657,2]
[370401415,1752000651542,-1544.03,0.00024657,2]
[370401416,1752000651558,-460.0,0.00024657,2]
[370401417,1752000651574,-460.0,0.00024657,2]
[370401418,1752000651588,-1006.28,0.00024657,2]
[370401419,1752000651604,-460.0,0.00024657,2]
[370401420,1752000651618,-460.78,0.00024657,2]
[370401421,1752000651968,-815.55,0.00024657,2]
[370401422,1752000652003,-514.67,0.00024657,2]
[370401423,1752000652012,-460.0,0.00024657,2]
[370401424,1752000652022,-460.0,0.00024657,2]
[370401425,1752000652031,-2120.95,0.00024657,2]
[370401426,1752000652040,-460.0,0.00024657,2]
[370401427,1752000652049,-493.7,0.00024657,2]
[370401428,1752000652058,-543.28,0.00024657,2]
[370401429,1752000652068,-460.0,0.00024657,2]
[370401430,1752000652077,-670.83,0.00024657,2]
[370401431,1752000652086,-590.27526524,0.00024657,2]
[370401432,1752000652095,-460.0,0.00024657,2]
[370401433,1752000652104,-460.0,0.00024657,2]
[370401434,1752000652114,-460.0,0.00024657,2]
[370401435,1752000652127,-875.51,0.00024657,2]
[370401436,1752000652136,-460.0,0.00024657,2]
[370401437,1752000652146,-342.91421027,0.00024657,2]
[370401438,1752000652155,-1914.44,0.00024657,2]
[370401439,1752000652165,-460.0,0.00024657,2]
[370401440,1752000652174,-2014.63,0.00024657,2]
[370401441,1752000652183,-832.21,0.00024657,2]
[370401442,1752000652192,-460.0,0.00024657,2]
[370401443,1752000652202,-460.0,0.00024657,2]
[370401444,1752000652211,-460.0,0.00024657,2]
[370401445,1752000652220,-460.0,0.00024657,2]
[370401446,1752000652229,-460.0,0.00024657,2]
[370401447,1752000652239,-460.0,0.00024657,2]
[370401448,1752000652249,-460.0,0.00024657,2]
[370401449,1752000652260,-460.0,0.00024657,2]
[370401450,1752000652270,-460.0,0.00024657,2]
[370401451,1752000652280,-628.48,0.00024657,2]
[370401452,1752000652290,-460.0,0.00024657,2]
[370401453,1752000652299,-744.77,0.00024657,2]
[370401454,1752000652309,-460.0,0.00024657,2]
[370401455,1752000652319,-1862.36,0.00024657,2]
[370401456,1752000652328,-1116.61,0.00024657,2]
[370401457,1752000652337,-460.0,0.00024657,2]
[370401458,1752000652348,-1749.79,0.00024657,2]
[370401459,1752000652357,-460.0,0.00024657,2]
[370401460,1752000652367,-460.0,0.00024657,2]
[370401461,1752000652376,-460.0,0.00024657,2]
[370401462,1752000652389,-460.0,0.00024657,2]
[370401463,1752000652400,-2619.13,0.00024657,2]
[370401464,1752000652410,-460.0,0.00024657,2]
[370401465,1752000652420,-1813.74,0.00024657,2]
[370401466,1752000652428,-1554.33,0.00024657,2]
[370401467,1752000652438,-460.0,0.00024657,2]
[370401468,1752000652449,-490.71,0.00024657,2]
[370401469,1752000652461,-493.05,0.00024657,2]
[370401470,1752000652471,-460.0,0.00024657,2]
[370401471,1752000652481,-460.0,0.00024657,2]
[370401472,1752000652491,-3349.74,0.00024657,2]
[370401473,1752000652502,-3349.74,0.00024657,2]
[370401474,1752000652512,-3349.74,0.00024657,2]
[370401475,1752000652522,-3349.74,0.00024657,2]
[370401476,1752000652532,-3349.74,0.00024657,2]
[370401477,1752000652545,-3349.74,0.00024657,2]
[370401478,1752000652556,-3349.74,0.00024657,2]
[370401479,1752000652570,-3349.74,0.00024657,2]
[370401480,1752000652582,-3349.74,0.00024657,2]
[370401481,1752000652591,-3349.74,0.00024657,2]
[370401482,1752000652602,-460.0,0.00024657,2]
[370401483,1752000652613,-3349.74,0.00024657,2]
[370401484,1752000652622,-460.0,0.00024657,2]
[370401485,1752000652632,-3349.74,0.00024657,2]
[370401486,1752000652644,-3349.74,0.00024657,2]
[370401487,1752000652654,-3349.74,0.00024657,2]
[370401488,1752000652664,-460.0,0.00024657,2]
[370401489,1752000652673,-460.0,0.00024657,2]
[370401490,1752000652683,-460.0,0.00024657,2]
[370401491,1752000652693,-460.0,0.00024657,2]
[370401492,1752000652702,-1136.92,0.00024657,2]
[370401493,1752000652711,-460.0,0.00024657,2]
[370401494,1752000652721,-1502.49,0.00024657,2]
[370401495,1752000652731,-460.0,0.00024657,2]
[370401496,1752000652741,-883.85,0.00024657,2]
[370401497,1752000652751,-1306.22,0.00024657,2]
[370401498,1752000652761,-460.0,0.00024657,2]
[370401499,1752000652771,-1353.72,0.00024657,2]
[370401500,1752000652782,-2765.15,0.00024657,2]
[370401501,1752000652792,-1062.85,0.00024657,2]
[370401502,1752000652803,-460.0,0.00024657,2]
[370401503,1752000652813,-519.68,0.00024657,2]
[370401504,1752000652822,-891.72,0.00024657,2]
[370401505,1752000652833,-460.0,0.00024657,2]
[370401506,1752000652842,-975.26,0.00024657,2]
[370401507,1752000652852,-460.0,0.00024657,2]
[370401508,1752000652863,-1509.83,0.00024657,2]
[370401509,1752000652873,-460.0,0.00024657,2]
[370401510,1752000652883,-609.44,0.00024657,2]
[370401511,1752000652894,-460.0,0.00024657,2]
[370401512,1752000652905,-460.0,0.00024657,2]
[370401513,1752000652915,-1533.5,0.00024657,2]
[370401514,1752000652926,-611.61,0.00024657,2]
[370401515,1752000652936,-460.0,0.00024657,2]
[370401516,1752000652949,-2502.38,0.00024657,2]
[370401517,1752000652959,-460.48,0.00024657,2]
[370401518,1752000652969,-460.0,0.00024657,2]
[370401519,1752000652978,-802.91,0.00024657,2]
[370401520,1752000652989,-2831.51,0.00024657,2]
[370401521,1752000652998,-793.61,0.00024657,2]
[370401522,1752000653008,-1732.85,0.00024657,2]
[370401523,1752000653018,-1591.36,0.00024657,2]
[370401524,1752000653029,-909.21,0.00024657,2]
[370401525,1752000653040,-460.0,0.00024657,2]
[370401526,1752000653050,-461.55,0.00024657,2]
[370401527,1752000653061,-1878.78,0.00024657,2]
[370401528,1752000653072,-638.62,0.00024657,2]
[370401529,1752000653083,-460.0,0.00024657,2]
[370401530,1752000653104,-460.0,0.00024657,2]
[370401531,1752000653115,-460.0,0.00024657,2]
[370401532,1752000653127,-460.0,0.00024657,2]
[370401533,1752000653137,-490.0,0.00024657,2]
[370401534,1752000653147,-460.0,0.00024657,2]
[370401535,1752000653160,-460.0,0.00024657,2]
[370401536,1752000653171,-500.0,0.00024657,2]
[370401537,1752000653182,-500.0,0.00024657,2]
[370401538,1752000653193,-500.0,0.00024657,2]
[370401539,1752000653203,-500.0,0.00024657,2]
[370401540,1752000653213,-482.27,0.00024657,2]
[370401541,1752000653224,-2366.74,0.00024657,2]
[370401542,1752000653235,-490.37,0.00024657,2]
[370401543,1752000653245,-460.0,0.00024657,2]
[370401544,1752000653257,-1274.85,0.00024657,2]
[370401545,1752000653268,-617.84,0.00024657,2]
[370401546,1752000653280,-679.31,0.00024657,2]
[370401547,1752000653292,-460.0,0.00024657,2]
[370401548,1752000653304,-460.0,0.00024657,2]
[370401549,1752000653314,-1789.02,0.00024657,2]
[370401550,1752000653325,-934.52,0.00024657,2]
[370401551,1752000653335,-460.0,0.00024657,2]
[370401552,1752000653346,-506.34,0.00024657,2]
[370401553,1752000653356,-460.0,0.00024657,2]
[370401554,1752000653366,-460.0,0.00024657,2]
[370401555,1752000653378,-300.0,0.00024657,2]
[370401556,1752000653388,-460.0,0.00024657,2]
[370401557,1752000653400,-3145.94,0.00024657,2]
[370401558,1752000653410,-460.0,0.00024657,2]
[370401559,1752000653423,-460.0,0.00024657,2]
[370401560,1752000653434,-961.73,0.00024657,2]
[370401561,1752000653446,-460.0,0.00024657,2]
[370401562,1752000653461,-460.0,0.00024657,2]
[370401563,1752000653472,-460.0,0.00024657,2]
[370401564,1752000653482,-859.82,0.00024657,2]
[370401565,1752000653492,-460.0,0.00024657,2]
[370401566,1752000653501,-689.76,0.00024657,2]
[370401567,1752000653512,-717.93,0.00024657,2]
[370401568,1752000653522,-3344.13,0.00024657,2]
[370401569,1752000653532,-460.0,0.00024657,2]
[370401570,1752000653544,-460.0,0.00024657,2]
[370401571,1752000653556,-235.23028524,0.00024657,2]
[370401572,1752000653567,-507.71,0.00024657,2]
[370401573,1752000653578,-1919.98,0.00024657,2]
[370401574,1752000653589,-460.0,0.00024657,2]
[370401575,1752000653599,-460.0,0.00024657,2]
[370401576,1752000653608,-2262.41,0.00024657,2]
[370401577,1752000653620,-460.0,0.00024657,2]
[370401578,1752000653631,-1644.48,0.00024657,2]
[370401579,1752000653641,-1508.86,0.00024657,2]
[370401580,1752000653651,-460.0,0.00024657,2]
[370401581,1752000653661,-468.39,0.00024657,2]
[370401582,1752000653671,-1178.19,0.00024657,2]
[370401583,1752000653681,-1538.39,0.00024657,2]
[370401584,1752000653692,-460.0,0.00024657,2]
[370401585,1752000653701,-663.31,0.00024657,2]
[370401586,1752000653713,-539.37658457,0.00024657,2]
[370401587,1752000653723,-460.0,0.00024657,2]
[370401588,1752000653734,-805.65,0.00024657,2]
[370401589,1752000653745,-460.0,0.00024657,2]
[370401590,1752000653756,-500.0,0.00024657,2]
[370401591,1752000653767,-500.0,0.00024657,2]
[370401592,1752000653777,-500.0,0.00024657,2]
[370401593,1752000653792,-246.28,0.00024657,2]
[370401594,1752000653803,-2529.37,0.00024657,2]
[370401595,1752000653814,-460.0,0.00024657,2]
[370401596,1752000653824,-460.0,0.00024657,2]
[370401597,1752000653835,-1224.72,0.00024657,2]
[370401598,1752000653845,-460.0,0.00024657,2]
[370401599,1752000653855,-197.83518403,0.00024657,2]
[370401600,1752000653865,-658.38,0.00024657,2]
[370401601,1752000653875,-460.0,0.00024657,2]
[370401602,1752000653885,-460.0,0.00024657,2]
[370401603,1752000653895,-460.0,0.00024657,2]
[370401604,1752000653905,-598.26,0.00024657,2]
[370401605,1752000653915,-210.42967381,0.00024657,2]
[370401606,1752000653926,-2133.1,0.00024657,2]
[370401607,1752000653937,-1005.54,0.00024657,2]
[370401608,1752000653947,-3310.1,0.00024657,2]
[370401609,1752000653958,-833.58,0.00024657,2]
[370401610,1752000653968,-460.0,0.00024657,2]
[370401611,1752000653978,-460.0,0.00024657,2]
[370401612,1752000653989,-544.35998344,0.00024657,2]
[370401613,1752000653999,-501.71,0.00024657,2]
[370401614,1752000654010,-759.27,0.00024657,2]
[370401615,1752000654020,-867.93,0.00024657,2]
[370401616,1752000654030,-460.0,0.00024657,2]
[370401617,1752000654040,-460.0,0.00024657,2]
[370401618,1752000654051,-574.8,0.00024657,2]
[370401619,1752000654061,-460.0,0.00024657,2]
[370401620,1752000654071,-1429.18,0.00024657,2]
[370401621,1752000654081,-1125.25,0.00024657,2]
[370401622,1752000654091,-1750.6,0.00024657,2]
[370401623,1752000654102,-460.0,0.00024657,2]
[370401624,1752000654112,-850.78,0.00024657,2]
[370401625,1752000654123,-460.0,0.00024657,2]
[370401626,1752000654132,-460.0,0.00024657,2]
[370401627,1752000654142,-958.87,0.00024657,2]
[370401628,1752000654151,-540.72,0.00024657,2]
[370401629,1752000654161,-1052.27,0.00024657,2]
[370401630,1752000654171,-1026.18,0.00024657,2]
[370401631,1752000654180,-487.27,0.00024657,2]
[370401632,1752000654191,-460.0,0.00024657,2]
[370401633,1752000654200,-598.48,0.00024657,2]
[370401634,1752000654210,-653.63,0.00024657,2]
[370401635,1752000654220,-460.0,0.00024657,2]
[370401636,1752000654229,-460.0,0.00024657,2]
[370401637,1752000654239,-460.0,0.00024657,2]
[370401638,1752000654249,-460.0,0.00024657,2]
[370401639,1752000654258,-587.73,0.00024657,2]
[370401640,1752000654268,-460.0,0.00024657,2]
[370401641,1752000654278,-921.01,0.00024657,2]
[370401642,1752000654287,-1155.12,0.00024657,2]
[370401643,1752000654297,-950.77,0.00024657,2]
[370401644,1752000654306,-482.08,0.00024657,2]
[370401645,1752000654316,-460.0,0.00024657,2]
[370401646,1752000654327,-1428.59,0.00024657,2]
[370401647,1752000654337,-566.5,0.00024657,2]
[370401648,1752000654347,-3219.79,0.00024657,2]
[370401649,1752000654356,-460.0,0.00024657,2]
[370401650,1752000654366,-2112.91,0.00024657,2]